bitfinex-derivatives/quotes_BNBF0:USTF0_20250908
["timestamp","ask_amount","ask_price","bid_price","bid_amount"]
[1757370034143,0.65438822,878.33,876.88,0.19782731]
[1757370034347,1.5315338,878.35,876.88,0.19782731]
[1757370034550,0.65440978,878.34,876.88,0.19782731]
[1757370034848,0.65440978,878.33,876.88,0.19782731]
[1757370035148,1.5315338,878.35,876.88,0.19782731]
[1757370035449,0.65440978,878.34,876.88,0.19782731]
[1757370035748,0.65440978,878.33,876.88,0.19782731]
[1757370035948,1.5315338,878.35,876.88,0.19782731]
[1757370036146,0.65443486,878.34,876.88,0.19782731]
[1757370036345,0.65443486,878.33,876.88,0.19782731]
[1757370036644,1.5315338,878.34,876.88,0.19782731]
[1757370036846,0.65446501,878.33,876.88,0.19782731]
[1757370037049,1.5315338,878.34,876.88,0.19782731]
[1757370037349,0.65446501,878.33,876.88,0.19782731]
[1757370037543,1.5315338,878.34,876.88,0.19782731]
[1757370037748,0.65450366,878.33,876.88,0.19782731]
[1757370037945,1.5315338,878.34,876.88,0.19782731]
[1757370038149,0.65450366,878.33,876.88,0.19782731]
[1757370038349,1.5315338,878.33,876.88,0.19782731]
[1757370047257,0.65457419,878.32,876.88,0.19782731]
[1757370047460,0.65457419,878.31,876.88,0.19782731]
[1757370047660,0.65457419,878.3,876.88,0.19782731]
[1757370047862,0.65457419,878.29,876.88,0.19782731]
[1757370048061,0.65457419,878.28,876.88,0.19782731]
[1757370048359,0.65457419,878.27,876.88,0.19782731]
[1757370048556,0.65457419,878.26,876.88,0.19782731]
[1757370048759,0.65457419,878.25,876.88,0.19782731]
[1757370049061,0.65457419,878.24,876.88,0.19782731]
[1757370049260,0.65457419,878.23,876.88,0.19782731]
[1757370049461,0.65457419,878.22,876.88,0.19782731]
[1757370049662,0.65457419,878.21,876.88,0.19782731]
[1757370049861,0.65457419,878.2,876.88,0.19782731]
[1757370050059,0.65457419,878.19,876.88,0.19782731]
[1757370050257,0.65457419,878.18,876.88,0.19782731]
[1757370050462,0.65457419,878.17,876.88,0.19782731]
[1757370050757,1.5315338,878.39,876.88,0.19782731]
[1757370050961,0.65385949,878.38,876.88,0.19782731]
[1757370051161,0.65385949,878.37,876.88,0.19782731]
[1757370051357,1.5315338,878.39,876.88,0.19782731]
[1757370051358,0.65385949,878.36,876.88,0.19782731]
[1757370051663,0.65385949,878.35,876.88,0.19782731]
[1757370051862,0.65385949,878.34,876.88,0.19782731]
[1757370052059,0.65385949,878.33,876.88,0.19782731]
[1757370052363,0.65385949,878.32,876.88,0.19782731]
[1757370052663,0.65385949,878.31,876.88,0.19782731]
[1757370052862,0.65385949,878.3,876.88,0.19782731]
[1757370053062,0.65385949,878.29,876.88,0.19782731]
[1757370053361,0.65385949,878.28,876.88,0.19782731]
[1757370053558,0.65385949,878.27,876.88,0.19782731]
[1757370053759,0.65385949,878.26,876.88,0.19782731]
[1757370053963,0.65385949,878.25,876.88,0.19782731]
[1757370054158,0.65385949,878.24,876.88,0.19782731]
[1757370054362,0.65385949,878.23,876.88,0.19782731]
[1757370054557,0.65385949,878.22,876.88,0.19782731]
[1757370054761,1.5315338,878.46,876.88,0.19782731]
[1757370054762,0.65385949,878.21,876.88,0.19782731]
[1757370054960,0.65385949,878.2,876.88,0.19782731]
[1757370055164,0.65385949,878.19,876.88,0.19782731]
[1757370055360,0.65385949,878.18,876.88,0.19782731]
[1757370055564,0.65385949,878.17,876.88,0.19782731]
[1757370055865,0.65385949,878.16,876.88,0.19782731]
[1757370056058,1.5315338,878.47,876.88,0.19782731]
[1757370056262,0.65340349,878.46,876.88,0.19782731]
[1757370056462,0.65340349,878.45,876.88,0.19782731]
[1757370056661,0.65340349,878.44,876.88,0.19782731]
[1757370056860,0.65340349,878.43,876.88,0.19782731]
[1757370057060,1.5315338,878.36,876.88,0.19782731]
[1757370057259,2.18493729,878.35,876.88,0.19782731]
[1757370057461,0.65340349,878.34,876.88,0.19782731]
[1757370057661,0.65340349,878.33,876.88,0.19782731]
[1757370057864,0.65340349,878.32,876.88,0.19782731]
[1757370058063,0.65340349,878.31,876.88,0.19782731]
[1757370058263,0.65340349,878.3,876.88,0.19782731]
[1757370058467,0.65340349,878.29,876.88,0.19782731]
[1757370058665,0.65340349,878.28,876.88,0.19782731]
[1757370058863,0.65340349,878.27,876.88,0.19782731]
[1757370059063,0.65340349,878.26,876.88,0.19782731]
[1757370059267,0.65340349,878.25,876.88,0.19782731]
[1757370059563,0.65340349,878.24,876.88,0.19782731]
[1757370059767,0.65340349,878.23,876.88,0.19782731]
[1757370059969,0.65340349,878.22,876.88,0.19782731]
[1757370060269,0.65340349,878.21,876.88,0.19782731]
[1757370060469,0.65340349,878.2,876.88,0.19782731]
[1757370060663,0.65340349,878.19,876.88,0.19782731]
[1757370060865,0.65340349,878.18,876.88,0.19782731]
[1757370061065,0.65340349,878.17,876.88,0.19782731]
[1757370061370,2.18493729,878.16,876.88,0.19782731]
[1757370061568,1.5315338,878.16,876.88,0.19782731]
[1757370063073,2.18461811,878.15,876.88,0.19782731]
[1757370063376,0.65295552,878.14,876.88,0.19782731]
[1757370063578,0.65295552,878.13,876.88,0.19782731]
[1757370063779,0.65295552,878.12,876.88,0.19782731]
[1757370063982,0.65295552,878.11,876.88,0.19782731]
[1757370064179,0.65295552,878.1,876.88,0.19782731]
[1757370064384,0.65295552,878.09,876.88,0.19782731]
[1757370064584,0.65295552,878.08,876.88,0.19782731]
[1757370064785,0.65295552,878.07,876.88,0.19782731]
[1757370064985,0.65295552,878.06,876.88,0.19782731]
[1757370065182,0.65295552,878.05,876.88,0.19782731]
[1757370065389,0.65295552,878.04,876.88,0.19782731]
[1757370065687,0.65295552,878.03,876.88,0.19782731]
[1757370065884,1.5315338,878.43,876.88,0.19782731]
[1757370066087,0.65265588,878.42,876.88,0.19782731]
[1757370066284,0.65265588,878.41,876.88,0.19782731]
[1757370066584,1.5315338,878.15,876.88,0.19782731]
[1757370066889,0.65265588,878.14,876.88,0.19782731]
[1757370067087,0.65265588,878.13,876.88,0.19782731]
[1757370067286,1.5315338,878.15,876.88,0.19782731]
[1757370067287,0.65265588,878.12,876.88,0.19782731]
[1757370067588,0.65265588,878.11,876.88,0.19782731]
[1757370067788,0.65265588,878.1,876.88,0.19782731]
[1757370067985,0.65265588,878.09,876.88,0.19782731]
[1757370068283,0.65265588,878.08,876.88,0.19782731]
[1757370068488,0.65265588,878.07,876.88,0.19782731]
[1757370068689,0.65265588,878.06,876.88,0.19782731]
[1757370068883,0.65265588,878.05,876.88,0.19782731]
[1757370069184,0.65265588,878.04,876.88,0.19782731]
[1757370069384,0.65265588,878.03,876.88,0.19782731]
[1757370069586,1.5315338,878.17,876.88,0.19782731]
[1757370069788,1.5315338,878.14,876.88,0.19782731]
[1757370069988,0.65224575,878.13,876.88,0.19782731]
[1757370070188,0.65224575,878.12,876.88,0.19782731]
[1757370070387,0.65224575,878.11,876.88,0.19782731]
[1757370070587,0.65224575,878.1,876.88,0.19782731]
[1757370070788,0.65224575,878.09,876.88,0.19782731]
[1757370070988,0.65224575,878.08,876.88,0.19782731]
[1757370071288,0.65224575,878.07,876.88,0.19782731]
[1757370071488,0.65224575,878.06,876.88,0.19782731]
[1757370071685,0.65224575,878.05,876.88,0.19782731]
[1757370071986,0.65224575,878.04,876.88,0.19782731]
[1757370072188,1.5315338,878.16,876.88,0.19782731]
[1757370072386,0.65204689,878.15,876.88,0.19782731]
[1757370072589,0.65204689,878.14,876.88,0.19782731]
[1757370072889,0.65204689,878.13,876.88,0.19782731]
[1757370073086,1.5315338,878.04,876.88,0.19782731]
[1757370074488,2.18348003,878.03,876.88,0.19782731]
[1757370074687,1.5315338,878.03,876.88,0.19782731]
[1757370075890,1.5315338,878.09,876.88,0.19782731]
[1757370076087,0.65189944,878.08,876.88,0.19782731]
[1757370076287,0.65189944,878.07,876.88,0.19782731]
[1757370076492,0.65189944,878.06,876.88,0.19782731]
[1757370076691,0.65189944,878.05,876.88,0.19782731]
[1757370076892,0.65189944,878.04,876.88,0.19782731]
[1757370077189,0.65189944,878.03,876.88,0.19782731]
[1757370077488,1.5315338,878.1,876.88,0.19782731]
[1757370077692,0.65182592,878.09,876.88,0.19782731]
[1757370077893,0.65182592,878.08,876.88,0.19782731]
[1757370078193,0.65182592,878.07,876.88,0.19782731]
[1757370078393,0.65182592,878.06,876.88,0.19782731]
[1757370078689,0.65182592,878.05,876.88,0.19782731]
[1757370078890,0.65182592,878.04,876.88,0.19782731]
[1757370079193,1.5315338,878.11,876.88,0.19782731]
[1757370079194,0.65182592,878.03,876.88,0.19782731]
[1757370079394,1.5315338,878.12,876.88,0.19782731]
[1757370079594,2.18330457,878.11,876.88,0.19782731]
[1757370079791,0.65177077,878.1,876.88,0.19782731]
[1757370080093,0.65177077,878.09,876.88,0.19782731]
[1757370080294,0.65177077,878.08,876.88,0.19782731]
[1757370080490,0.65177077,878.07,876.88,0.19782731]
[1757370080794,0.65177077,878.06,876.88,0.19782731]
[1757370080993,0.65177077,878.05,876.88,0.19782731]
[1757370081194,0.65177077,878.04,876.88,0.19782731]
[1757370081394,0.65177077,878.03,876.88,0.19782731]
[1757370081602,1.5315338,878.23,876.88,0.19782731]
[1757370081892,0.65157295,878.22,876.88,0.19782731]
[1757370082194,0.65157295,878.21,876.88,0.19782731]
[1757370082394,0.65157295,878.2,876.88,0.19782731]
[1757370082591,0.65157295,878.19,876.88,0.19782731]
[1757370082794,0.65157295,878.18,876.88,0.19782731]
[1757370082995,0.65157295,878.17,876.88,0.19782731]
[1757370083194,0.65157295,878.16,876.88,0.19782731]
[1757370083495,0.65157295,878.15,876.88,0.19782731]
[1757370083695,0.65157295,878.14,876.88,0.19782731]
[1757370083892,0.65157295,878.13,876.88,0.19782731]
[1757370084091,1.5315338,878.25,876.88,0.19782731]
[1757370084290,0.65155641,878.24,876.88,0.19782731]
[1757370084495,1.5315338,878.25,876.88,0.19782731]
[1757370084496,0.65155641,878.23,876.88,0.19782731]
[1757370084691,0.65155641,878.22,876.88,0.19782731]
[1757370084894,0.65155641,878.21,876.88,0.19782731]
[1757370085095,0.65155641,878.2,876.88,0.19782731]
[1757370085391,0.65155641,878.19,876.88,0.19782731]
[1757370085595,0.65155641,878.18,876.88,0.19782731]
[1757370085795,0.65155641,878.17,876.88,0.19782731]
[1757370085996,0.65155641,878.16,876.88,0.19782731]
[1757370086197,0.65155641,878.15,876.88,0.19782731]
[1757370086397,0.65155641,878.14,876.88,0.19782731]
[1757370086597,0.65155641,878.13,876.88,0.19782731]
[1757370086897,0.65155641,878.12,876.88,0.19782731]
[1757370087097,0.65155641,878.11,876.88,0.19782731]
[1757370087294,0.65155641,878.1,876.88,0.19782731]
[1757370087493,0.65155641,878.09,876.88,0.19782731]
[1757370087697,0.65155641,878.08,876.88,0.19782731]
[1757370087899,0.65155641,878.07,876.88,0.19782731]
[1757370088098,0.65155641,878.06,876.88,0.19782731]
[1757370088296,0.65155641,878.05,876.88,0.19782731]
[1757370088495,0.65155641,878.04,876.88,0.19782731]
[1757370088801,1.5315338,878.24,876.88,0.19782731]
[1757370089097,0.65160702,878.23,876.88,0.19782731]
[1757370089301,0.65160702,878.22,876.88,0.19782731]
[1757370089597,2.18314082,878.21,876.88,0.19782731]
[1757370089801,0.65160702,878.2,876.88,0.19782731]
[1757370090001,1.5315338,878.21,876.88,0.19782731]
[1757370090002,0.65160702,878.19,876.88,0.19782731]
[1757370090295,0.65160702,878.18,876.88,0.19782731]
[1757370090498,0.65160702,878.17,876.88,0.19782731]
[1757370090702,0.65160702,878.16,876.88,0.19782731]
[1757370091001,1.5315338,878.13,876.88,0.19782731]
[1757370091198,0.65160702,878.12,876.88,0.19782731]
[1757370091403,0.65160702,878.11,876.88,0.19782731]
[1757370091602,0.65160702,878.1,876.88,0.19782731]
[1757370091798,0.65160702,878.09,876.88,0.19782731]
[1757370092002,0.65160702,878.08,876.88,0.19782731]
[1757370092302,0.65160702,878.07,876.88,0.19782731]
[1757370092602,0.65160702,878.06,876.88,0.19782731]
[1757370092799,0.65160702,878.05,876.88,0.19782731]
[1757370093098,0.65160702,878.04,876.88,0.19782731]
[1757370093303,1.5315338,878.18,876.88,0.19782731]
[1757370093499,0.6521107,878.17,876.88,0.19782731]
[1757370093699,0.6521107,878.16,876.88,0.19782731]
[1757370093901,0.6521107,878.15,876.88,0.19782731]
[1757370094103,0.6521107,878.14,876.88,0.19782731]
[1757370094403,0.6521107,878.13,876.88,0.19782731]
[1757370094604,0.6521107,878.12,876.88,0.19782731]
[1757370094803,0.6521107,878.11,876.88,0.19782731]
[1757370094998,0.6521107,878.1,876.88,0.19782731]
[1757370095200,0.6521107,878.09,876.88,0.19782731]
[1757370095400,0.6521107,878.08,876.88,0.19782731]
[1757370095703,0.6521107,878.07,876.88,0.19782731]
[1757370095901,0.6521107,878.06,876.88,0.19782731]
[1757370096101,0.6521107,878.05,876.88,0.19782731]
[1757370096302,0.6521107,878.04,876.88,0.19782731]
[1757370096502,1.5315338,878.12,876.88,0.19782731]
[1757370096706,0.65227398,878.11,876.88,0.19782731]
[1757370096906,0.65227398,878.1,876.88,0.19782731]
[1757370097106,0.65227398,878.09,876.88,0.19782731]
[1757370097307,0.65227398,878.08,876.88,0.19782731]
[1757370097508,0.65227398,878.07,876.88,0.19782731]
[1757370097706,0.65227398,878.06,876.88,0.19782731]
[1757370097902,0.65227398,878.05,876.88,0.19782731]
[1757370098107,0.65227398,878.04,876.88,0.19782731]
[1757370098306,1.5315338,878.11,876.88,0.19782731]
[1757370098503,0.65241512,878.1,876.88,0.19782731]
[1757370098707,0.65241512,878.09,876.88,0.19782731]
[1757370098907,0.65241512,878.08,876.88,0.19782731]
[1757370099204,1.5315338,878.11,876.88,0.19782731]
[1757370099205,0.65241512,878.07,876.88,0.19782731]
[1757370099404,0.65241512,878.06,876.88,0.19782731]
[1757370099708,0.65241512,878.05,876.88,0.19782731]
[1757370099909,0.65241512,878.04,876.88,0.19782731]
[1757370100110,1.5315338,878.13,876.88,0.19782731]
[1757370100310,0.65250814,878.12,876.88,0.19782731]
[1757370100509,0.65250814,878.11,876.88,0.19782731]
[1757370100706,0.65250814,878.1,876.88,0.19782731]
[1757370100910,0.65250814,878.09,876.88,0.19782731]
[1757370101209,1.5315338,878.07,876.88,0.19782731]
[1757370101408,2.18404194,878.06,876.88,0.19782731]
[1757370101606,0.65250814,878.05,876.88,0.19782731]
[1757370101810,0.65250814,878.04,876.88,0.19782731]
[1757370102110,1.5315338,878.06,876.88,0.19782731]
[1757370102311,0.65269944,878.05,876.88,0.19782731]
[1757370102507,0.65269944,878.04,876.88,0.19782731]
[1757370102711,1.5315338,878.06,876.88,0.19782731]
[1757370103008,0.65280016,878.05,876.88,0.19782731]
[1757370103308,0.65280016,878.04,876.88,0.19782731]
[1757370103508,1.5315338,878.05,876.88,0.19782731]
[1757370103712,0.65292542,878.04,876.88,0.19782731]
[1757370103914,1.5315338,878.05,876.88,0.19782731]
[1757370104110,0.65292542,878.04,876.88,0.19782731]
[1757370104409,1.5315338,878.04,876.88,0.19782731]
[1757370104609,1.5315338,878.06,876.88,0.19782731]
[1757370104809,0.65306706,878.05,876.88,0.19782731]
[1757370105009,0.65306706,878.04,876.88,0.19782731]
[1757370105314,1.5315338,878.06,876.88,0.19782731]
[1757370105512,0.65322957,878.05,876.88,0.19782731]
[1757370105710,0.65322957,878.04,876.88,0.19782731]
[1757370105913,1.5315338,878.06,876.88,0.19782731]
[1757370106216,0.65322957,878.05,876.88,0.19782731]
[1757370106516,2.18476337,878.04,876.88,0.19782731]
[1757370106812,1.5315338,878.04,876.88,0.19782731]
[1757370118321,1.5315338,878.09,876.88,0.19782731]
[1757370118523,0.65404862,878.08,876.88,0.19782731]
[1757370118723,0.65404862,878.07,876.88,0.19782731]
[1757370118920,0.65404862,878.06,876.88,0.19782731]
[1757370119119,0.65404862,878.05,876.88,0.19782731]
[1757370119318,0.65404862,878.04,876.88,0.19782731]
[1757370119521,0.65404862,878.03,876.88,0.19782731]
[1757370119721,1.5315338,878.08,876.88,0.19782731]
[1757370119924,0.65413592,878.07,876.88,0.19782731]
[1757370120221,0.65413592,878.06,876.88,0.19782731]
[1757370120421,0.65413592,878.05,876.88,0.19782731]
[1757370120622,0.65413592,878.04,876.88,0.19782731]
[1757370120821,0.65413592,878.03,876.88,0.19782731]
[1757370121020,1.5315338,878.08,876.88,0.19782731]
[1757370121222,2.18566967,878.07,876.88,0.19782731]
[1757370121420,0.65413587,878.06,876.88,0.19782731]
[1757370121623,0.65413587,878.05,876.88,0.19782731]
[1757370121823,0.65413587,878.04,876.88,0.19782731]
[1757370122022,0.65413587,878.03,876.88,0.19782731]
[1757370122231,1.5315338,878.09,876.88,0.19782731]
[1757370122422,0.65468872,878.08,876.88,0.19782731]
[1757370122723,0.65468872,878.07,876.88,0.19782731]
[1757370122924,0.65468872,878.06,876.88,0.19782731]
[1757370123123,0.65468872,878.05,876.88,0.19782731]
[1757370123327,0.65468872,878.04,876.88,0.19782731]
[1757370123524,1.5315338,878.07,876.88,0.19782731]
[1757370123725,0.6549659,878.06,876.88,0.19782731]
[1757370123928,0.6549659,878.05,876.88,0.19782731]
[1757370124128,0.6549659,878.04,876.88,0.19782731]
[1757370124329,1.5315338,878.08,876.88,0.19782731]
[1757370124629,0.65495912,878.07,876.88,0.19782731]
[1757370124929,0.65495912,878.06,876.88,0.19782731]
[1757370125126,0.65495912,878.05,876.88,0.19782731]
[1757370125426,0.65495912,878.04,876.88,0.19782731]
[1757370125630,1.5315338,878.07,876.88,0.19782731]
[1757370125831,0.6549597,878.06,876.88,0.19782731]
[1757370126027,0.6549597,878.05,876.88,0.19782731]
[1757370126230,0.6549597,878.04,876.88,0.19782731]
[1757370126430,1.5315338,878.07,876.88,0.19782731]
[1757370126627,0.65496038,878.06,876.88,0.19782731]
[1757370126925,0.65496038,878.05,876.88,0.19782731]
[1757370127127,0.65496038,878.04,876.88,0.19782731]
[1757370127330,1.5315338,878.05,876.88,0.19782731]
[1757370127530,0.65496117,878.04,876.88,0.19782731]
[1757370127729,1.5315338,878.05,876.88,0.19782731]
[1757370127931,0.65496117,878.04,876.88,0.19782731]
[1757370128232,1.5315338,878.04,876.88,0.19782731]
[1757370133636,1.5315338,878.14,876.88,0.19782731]
[1757370133840,0.65496563,878.13,876.88,0.19782731]
[1757370134140,0.65496563,878.12,876.88,0.19782731]
[1757370134340,0.65496563,878.11,876.88,0.19782731]
[1757370134638,0.65496573,878.1,876.88,0.19782731]
[1757370134836,0.65496573,878.09,876.88,0.19782731]
[1757370135040,0.65496573,878.08,876.88,0.19782731]
[1757370135234,0.65496573,878.07,876.88,0.19782731]
[1757370135436,0.65496573,878.06,876.88,0.19782731]
[1757370135640,0.65496573,878.05,876.88,0.19782731]
[1757370135839,0.65496573,878.04,876.88,0.19782731]
[1757370136036,1.5315338,878.14,876.88,0.19782731]
[1757370136241,0.65496602,878.13,876.88,0.19782731]
[1757370136441,0.65496602,878.12,876.88,0.19782731]
[1757370136741,0.65496602,878.11,876.88,0.19782731]
[1757370137037,0.65496602,878.1,876.88,0.19782731]
[1757370137237,0.65496602,878.09,876.88,0.19782731]
[1757370137435,0.65496602,878.08,876.88,0.19782731]
[1757370137638,0.65496602,878.07,876.88,0.19782731]
[1757370137841,0.65496602,878.06,876.88,0.19782731]
[1757370138141,0.65496602,878.05,876.88,0.19782731]
[1757370138437,0.65496602,878.04,876.88,0.19782731]
[1757370138638,1.5315338,878.14,876.88,0.19782731]
[1757370138840,0.65496929,878.13,876.88,0.19782731]
[1757370139038,2.18650309,878.12,876.88,0.19782731]
[1757370139237,0.65496929,878.11,876.88,0.19782731]
[1757370139441,0.65496929,878.1,876.88,0.19782731]
[1757370139641,0.65496929,878.09,876.88,0.19782731]
[1757370139941,0.65496929,878.08,876.88,0.19782731]
[1757370140241,0.65496929,878.07,876.88,0.19782731]
[1757370140439,0.65496929,878.06,876.88,0.19782731]
[1757370140637,0.65496929,878.05,876.88,0.19782731]
[1757370140836,0.65496929,878.04,876.88,0.19782731]
[1757370141037,1.5315338,878.11,876.88,0.19782731]
[1757370141038,1.5315338,878.12,876.88,0.19782731]
[1757370141242,0.65497421,878.11,876.88,0.19782731]
[1757370141442,0.65497421,878.1,876.88,0.19782731]
[1757370141639,0.65497421,878.09,876.88,0.19782731]
[1757370141842,0.65497421,878.08,876.88,0.19782731]
[1757370142038,1.5315338,878.16,876.88,0.19782731]
[1757370142242,1.5315338,878.02,876.88,0.19782731]
[1757370142440,0.6549039,878.01,876.88,0.19782731]
[1757370142740,0.6549039,878.0,876.88,0.19782731]
[1757370143044,1.5315338,878.02,876.88,0.19782731]
[1757370143244,0.65487334,878.01,876.88,0.19782731]
[1757370143443,0.65487334,878.0,876.88,0.19782731]
[1757370143640,1.5315338,878.02,876.88,0.19782731]
[1757370143946,0.65487307,878.01,876.88,0.19782731]
[1757370144142,0.65487307,878.0,876.88,0.19782731]
[1757370144342,1.5315338,878.02,876.88,0.19782731]
[1757370144638,0.65484801,878.01,876.88,0.19782731]
[1757370144840,0.65484801,878.0,876.88,0.19782731]
[1757370145041,1.5315338,878.02,876.88,0.19782731]
[1757370145344,0.6548278,878.01,876.88,0.19782731]
[1757370145541,0.6548278,878.0,876.88,0.19782731]
[1757370145845,1.5315338,878.02,876.88,0.19782731]
[1757370146038,0.65482671,878.01,876.88,0.19782731]
[1757370146242,0.65482671,878.0,876.88,0.19782731]
[1757370146443,1.5315338,878.02,876.88,0.19782731]
[1757370146640,0.65480802,878.01,876.88,0.19782731]
[1757370146841,0.65480802,878.0,876.88,0.19782731]
[1757370147039,1.5315338,878.02,876.88,0.19782731]
[1757370147243,0.65479288,878.01,876.88,0.19782731]
[1757370147540,0.65479288,878.0,876.88,0.19782731]
[1757370147740,1.5315338,878.02,876.88,0.19782731]
[1757370148039,0.65479126,878.01,876.88,0.19782731]
[1757370148244,0.65479126,878.0,876.88,0.19782731]
[1757370148442,0.65475606,877.99,876.88,0.19782731]
[1757370148745,0.65475606,877.98,876.88,0.19782731]
[1757370148944,1.5315338,878.01,876.88,0.19782731]
[1757370149143,0.65475605,878.0,876.88,0.19782731]
[1757370149346,0.65475605,877.99,876.88,0.19782731]
[1757370149548,0.65475605,877.98,876.88,0.19782731]
[1757370149748,1.5315338,878.02,876.88,0.19782731]
[1757370149946,0.65470994,878.01,876.88,0.19782731]
[1757370150147,2.18624374,878.0,876.88,0.19782731]
[1757370150449,1.5315338,877.9,876.88,0.19782731]
[1757370156149,1.5315338,877.91,876.88,0.19782731]
[1757370156350,0.65398275,877.9,876.88,0.19782731]
[1757370156650,1.5315338,877.91,876.88,0.19782731]
[1757370156846,0.65397147,877.9,876.88,0.19782731]
[1757370157043,1.5315338,877.91,876.88,0.19782731]
[1757370157246,0.65392229,877.9,876.88,0.19782731]
[1757370157550,1.5315338,877.91,876.88,0.19782731]
[1757370157849,1.5315338,877.92,876.88,0.19782731]
[1757370158050,0.65392243,877.91,876.88,0.19782731]
[1757370158249,1.5315338,877.92,876.88,0.19782731]
[1757370158549,0.65387963,877.91,876.88,0.19782731]
[1757370158749,1.5315338,877.91,876.88,0.19782731]
[1757370162948,1.5315338,877.89,876.88,0.19782731]
[1757370163946,1.5315338,877.86,876.88,0.19782731]
[1757370164248,1.5315338,877.84,876.88,0.19782731]
[1757370164447,2.18517576,877.83,876.88,0.19782731]
[1757370164651,0.65364196,877.82,876.88,0.19782731]
[1757370164851,0.65364196,877.81,876.88,0.19782731]
[1757370165051,1.5315338,877.84,876.88,0.19782731]
[1757370165347,0.65341845,877.83,876.88,0.19782731]
[1757370165651,0.65341845,877.82,876.88,0.19782731]
[1757370165849,1.5315338,877.84,876.88,0.19782731]
[1757370166049,0.65341513,877.83,876.88,0.19782731]
[1757370166253,0.65341513,877.82,876.88,0.19782731]
[1757370166451,0.65332488,877.81,876.88,0.19782731]
[1757370166652,1.5315338,877.84,876.88,0.19782731]
[1757370166848,0.65332504,877.83,876.88,0.19782731]
[1757370167052,0.65332504,877.82,876.88,0.19782731]
[1757370167254,0.65332504,877.81,876.88,0.19782731]
[1757370167553,1.5315338,877.84,876.88,0.19782731]
[1757370167750,0.65324315,877.83,876.88,0.19782731]
[1757370168053,0.65324315,877.82,876.88,0.19782731]
[1757370168253,0.65324315,877.81,876.88,0.19782731]
[1757370168456,1.5315338,877.86,876.88,0.19782731]
[1757370168753,0.65317,877.85,876.88,0.19782731]
[1757370168950,0.65317,877.84,876.88,0.19782731]
[1757370169250,0.65317,877.83,876.88,0.19782731]
[1757370169450,0.65317,877.82,876.88,0.19782731]
[1757370169753,0.65317,877.81,876.88,0.19782731]
[1757370169950,1.5315338,877.85,876.88,0.19782731]
[1757370170153,0.65310422,877.84,876.88,0.19782731]
[1757370170453,0.65310422,877.83,876.88,0.19782731]
[1757370170650,0.65310422,877.82,876.88,0.19782731]
[1757370170854,0.65310422,877.81,876.88,0.19782731]
[1757370171054,1.5315338,877.85,876.88,0.19782731]
[1757370171254,0.65299206,877.84,876.88,0.19782731]
[1757370171453,0.65299206,877.83,876.88,0.19782731]
[1757370171653,0.65299206,877.82,876.88,0.19782731]
[1757370171854,0.65299206,877.81,876.88,0.19782731]
[1757370172056,0.65299206,877.8,876.88,0.19782731]
[1757370172350,0.65299206,877.79,876.88,0.19782731]
[1757370172550,0.65299206,877.78,876.88,0.19782731]
[1757370172755,1.5315338,877.85,876.88,0.19782731]
[1757370172956,0.6528918,877.84,876.88,0.19782731]
[1757370173255,0.6528918,877.83,876.88,0.19782731]
[1757370173451,0.6528918,877.82,876.88,0.19782731]
[1757370173654,0.6528918,877.81,876.88,0.19782731]
[1757370173854,0.6528918,877.8,876.88,0.19782731]
[1757370174053,0.6528918,877.79,876.88,0.19782731]
[1757370174252,0.6528918,877.78,876.88,0.19782731]
[1757370174456,1.5315338,877.81,876.88,0.19782731]
[1757370174657,0.6527657,877.8,876.88,0.19782731]
[1757370174858,0.6527657,877.79,876.88,0.19782731]
[1757370175059,0.6527657,877.78,876.88,0.19782731]
[1757370175255,1.5315338,877.81,876.88,0.19782731]
[1757370175457,2.18424669,877.8,876.88,0.19782731]
[1757370175656,0.65271289,877.79,876.88,0.19782731]
[1757370175856,0.65271289,877.78,876.88,0.19782731]
[1757370176060,1.5315338,877.8,876.88,0.19782731]
[1757370176359,0.65265749,877.79,876.88,0.19782731]
[1757370176560,0.65265749,877.78,876.88,0.19782731]
[1757370176759,1.5315338,877.79,876.88,0.19782731]
[1757370176959,0.65265447,877.78,876.88,0.19782731]
[1757370177258,1.5315338,877.8,876.88,0.19782731]
[1757370177461,1.5315338,877.78,876.88,0.19782731]
[1757370188670,0.65299582,877.77,876.88,0.19782731]
[1757370188867,1.5315338,878.31,876.88,0.19782731]
[1757370189065,2.18452962,878.3,876.88,0.19782731]
[1757370189266,0.65299582,878.29,876.88,0.19782731]
[1757370189469,0.65299582,878.28,876.88,0.19782731]
[1757370189664,0.65299582,878.27,876.88,0.19782731]
[1757370189870,0.65299582,878.26,876.88,0.19782731]
[1757370190068,0.65299582,878.25,876.88,0.19782731]
[1757370190268,0.65299582,878.24,876.88,0.19782731]
[1757370190467,0.65299582,878.23,876.88,0.19782731]
[1757370190768,0.65299582,878.22,876.88,0.19782731]
[1757370190966,0.65299582,878.21,876.88,0.19782731]
[1757370191270,0.65299582,878.2,876.88,0.19782731]
[1757370191467,0.65299582,878.19,876.88,0.19782731]
[1757370191670,0.65299582,878.18,876.88,0.19782731]
[1757370191868,0.65299582,878.17,876.88,0.19782731]
[1757370192071,0.65299582,878.16,876.88,0.19782731]
[1757370192268,0.65299582,878.15,876.88,0.19782731]
[1757370192468,0.65299582,878.14,876.88,0.19782731]
[1757370192671,0.65299582,878.13,876.88,0.19782731]
[1757370192971,0.65299582,878.12,876.88,0.19782731]